fUSD/lending_fUSD_20240503
["ID","MTS","AMOUNT","RATE_DAILY","PERIOD"]
[325372417,1714768241190,-150.35,0.00014,2]
[325372418,1714768241199,-150.35,0.00014,2]
[325372419,1714768241208,-150.35,0.00014,2]
[325372421,1714768241218,-150.35,0.00014,2]
[325372423,1714768241226,-150.35,0.00014,2]
[325372424,1714768241236,-150.35,0.00014,2]
[325372425,1714768241246,-150.35,0.00014,2]
[325372426,1714768241256,-150.35,0.00014,2]
[325372427,1714768241267,-150.35,0.00014,2]
[325372428,1714768241276,-150.35,0.00014,2]
[325372429,1714768241287,-150.35,0.00014,2]
[325372430,1714768241296,-150.35,0.00014,2]
[325372431,1714768241305,-150.35,0.00014,2]
[325372432,1714768241315,-150.35,0.00014,2]
[325372433,1714768241325,-150.35,0.00014,2]
[325372434,1714768241335,-1000.0,0.00014094,2]
[325372435,1714768241345,-264.434157,0.00014247,2]
[325372436,1714768241355,-608.53,0.00014469,2]
[325372437,1714768241365,-14646.9,0.00014673,2]
[325372438,1714768241374,-250.0,0.00014673,2]
[325372439,1714768241384,-2751.0,0.00014681,2]
[325372440,1714768241394,-630.2,0.00014743,2]
[325372441,1714768241403,-500.0,0.00014791,2]
[325372442,1714768241413,-1352.42,0.00014849,2]
[325372443,1714768241422,-200.0,0.00014876,2]
[325372444,1714768241432,-577.54,0.000149,2]
[325372445,1714768241441,-238.48,0.00014906,2]
[325372446,1714768241451,-165.31,0.00014931,2]
[325372447,1714768241460,-165.6,0.00014935,2]
[325372448,1714768241470,-789.34668833,0.00015,2]
[325372449,1714768241731,-3373.0,0.00015,2]
[325372450,1714768241745,-513.0,0.00015,2]
[325372451,1714768241755,-264.434157,0.00015068,2]
[325372452,1714768241766,-3000.0,0.0001537,2]
[325372453,1714768241775,-1000.0,0.00015856,2]
[325372454,1714768241784,-264.434157,0.0001589,2]
[325372455,1714768241793,-1150.0,0.00016,3]
[325372456,1714768241803,-300.0,0.00016119,2]
[325372457,1714768241812,-167.0,0.00016262,2]
[325372458,1714768241822,-630.2,0.00016585,2]
[325372459,1714768241833,-264.434157,0.00016712,2]
[325372460,1714768241843,-167.0,0.00016798,2]
[325372461,1714768241852,-165.6,0.00016802,2]
[325372462,1714768241861,-178.28774648,0.000169,2]
[325372463,1714768241871,-17686.0,0.000169,5]
[325372464,1714768241881,-4352.78100082,0.00016997,2]
[325372465,1714768241890,-872.50116565,0.00016997,2]
[325372466,1714768241900,-872.50116565,0.00016997,2]
[325372467,1714768241909,-257.12828319,0.00016997,2]
[325372468,1714768241919,-281.91054346,0.00016997,2]
[325372469,1714768241928,-8194.78008036,0.00016998,2]
[325372470,1714768241937,-22788.98881143,0.00016999,2]
[325372471,1714768241947,-35291.5975136,0.00016999,2]
[325372472,1714768241956,-203.7,0.00017215,2]
[325372473,1714768241965,-167.0,0.00017335,2]
[325372474,1714768241974,-1858.0,0.00017437,2]
[325372475,1714768241983,-257.0,0.00017437,2]
[325372476,1714768241991,-611.0,0.00017437,2]
[325372477,1714768242000,-440.341,0.00017437,2]
[325372478,1714768242011,-808.0,0.00017437,2]
[325372479,1714768242020,-2449.0,0.00017437,2]
[325372480,1714768242029,-151.059,0.00017437,2]
[325372481,1714768242038,-1477.0,0.00017437,2]
[325372482,1714768242048,-421.0,0.00017437,2]
[325372483,1714768242057,-150.0,0.00017437,2]
[325372484,1714768242067,-1643.0,0.00017437,2]
[325372485,1714768242076,-476.588,0.00017437,2]
[325372486,1714768242085,-215.0,0.00017437,2]
[325372487,1714768242095,-1140.0,0.00017437,2]
[325372488,1714768242105,-3150.0,0.00017437,2]
[325372489,1714768242115,-971.0,0.00017437,2]
[325372490,1714768242124,-1396.0,0.00017437,2]
[325372491,1714768242134,-5739.0,0.00017437,2]
[325372492,1714768242143,-2299.0,0.00017437,2]
[325372493,1714768242153,-5910.865,0.00017437,2]
[325372494,1714768242162,-37757.0,0.00017437,2]
[325372495,1714768242171,-462.0,0.00017437,2]
[325372496,1714768242181,-2292.0,0.00017437,2]
[325372497,1714768242190,-664.277,0.00017437,2]
[325372498,1714768242199,-300.0,0.00017489,2]
[325372499,1714768242209,-264.434157,0.00017534,2]
[325372500,1714768242218,-1000.0,0.00017618,2]
[325372501,1714768242227,-3000.0,0.0001787,2]
[325372502,1714768242236,-167.0,0.00017872,2]
[325372503,1714768242245,-23527.82349455,0.0001788,2]
[325372504,1714768242254,-23527.82349454,0.0001788,2]
[325372505,1714768242265,-5072.11090557,0.0001788,2]
[325372506,1714768242275,-5072.11090555,0.0001788,2]
[325372507,1714768242284,-1200.0,0.00018,3]
[325372508,1714768242293,-191.14,0.00018038,2]
[325372509,1714768242302,-150.0,0.00018087,2]
[325372510,1714768242311,-171.0,0.0001833,4]
[325372511,1714768242321,-264.434157,0.00018356,2]
[325372512,1714768242330,-167.0,0.00018409,2]
[325372513,1714768242339,-630.2,0.00018428,2]
[325372514,1714768242349,-165.31,0.00018664,2]
[325372515,1714768242358,-165.6,0.00018669,2]
[325372516,1714768242368,-500.0,0.00018687,2]
[325372517,1714768242377,-500.0,0.00018687,2]
[325372518,1714768242387,-500.0,0.00018687,2]
[325372519,1714768242396,-500.0,0.00018687,2]
[325372520,1714768242405,-500.0,0.00018687,2]
[325372521,1714768242415,-500.0,0.00018687,2]
[325372522,1714768242424,-500.0,0.00018687,2]
[325372523,1714768242433,-500.0,0.00018687,2]
[325372524,1714768242443,-500.0,0.00018687,2]
[325372525,1714768242452,-500.0,0.00018687,2]
[325372526,1714768242462,-500.0,0.00018687,2]
[325372527,1714768242471,-500.0,0.00018687,2]
[325372528,1714768242480,-500.0,0.00018687,2]
[325372529,1714768242490,-500.0,0.00018687,2]
[325372530,1714768242499,-500.0,0.00018687,2]
[325372531,1714768242508,-500.0,0.00018687,2]
[325372532,1714768242521,-500.0,0.00018687,2]
[325372533,1714768242531,-500.0,0.00018687,2]
[325372534,1714768242540,-500.0,0.00018687,2]
[325372535,1714768242550,-500.0,0.00018687,2]
[325372536,1714768242559,-500.0,0.00018687,2]
[325372537,1714768242569,-500.0,0.00018687,2]
[325372538,1714768242579,-500.0,0.00018687,2]
[325372539,1714768242591,-500.0,0.00018687,2]
[325372540,1714768242601,-500.0,0.00018687,2]
[325372541,1714768242610,-500.0,0.00018687,2]
[325372542,1714768242621,-500.0,0.00018687,2]
[325372543,1714768242631,-500.0,0.00018687,2]
[325372544,1714768242641,-500.0,0.00018687,2]
[325372545,1714768242651,-500.0,0.00018687,2]
[325372546,1714768242661,-500.0,0.00018687,2]
[325372547,1714768242672,-500.0,0.00018687,2]
[325372548,1714768242683,-500.0,0.00018687,2]
[325372549,1714768242692,-500.0,0.00018687,2]
[325372550,1714768242701,-500.0,0.00018687,2]
[325372551,1714768242711,-500.0,0.00018687,2]
[325372552,1714768242721,-500.0,0.00018687,2]
[325372553,1714768242730,-500.0,0.00018687,2]
[325372554,1714768242739,-500.0,0.00018687,2]
[325372555,1714768242749,-500.0,0.00018687,2]
[325372556,1714768242760,-500.0,0.00018687,2]
[325372557,1714768242770,-500.0,0.00018687,2]
[325372558,1714768242780,-500.0,0.00018687,2]
[325372559,1714768242788,-500.0,0.00018687,2]
[325372560,1714768242798,-500.0,0.00018687,2]
[325372561,1714768242807,-500.0,0.00018687,2]
[325372562,1714768242817,-500.0,0.00018687,2]
[325372563,1714768242826,-500.0,0.00018687,2]
[325372564,1714768242836,-500.0,0.00018687,2]
[325372565,1714768242846,-500.0,0.00018687,2]
[325372566,1714768242855,-500.0,0.00018687,2]
[325372567,1714768242864,-500.0,0.00018687,2]
[325372568,1714768242874,-500.0,0.00018687,2]
[325372569,1714768242883,-500.0,0.00018687,2]
[325372570,1714768242892,-500.0,0.00018687,2]
[325372571,1714768242901,-500.0,0.00018687,2]
[325372572,1714768242911,-500.0,0.00018687,2]
[325372573,1714768242920,-500.0,0.00018687,2]
[325372574,1714768242930,-500.0,0.00018687,2]
[325372575,1714768242939,-500.0,0.00018687,2]
[325372576,1714768242948,-500.0,0.00018687,2]
[325372577,1714768242958,-500.0,0.00018687,2]
[325372578,1714768242967,-500.0,0.00018687,2]
[325372579,1714768242977,-500.0,0.00018687,2]
[325372580,1714768242986,-500.0,0.00018687,2]
[325372581,1714768242995,-500.0,0.00018687,2]
[325372582,1714768243004,-500.0,0.00018687,2]
[325372583,1714768243015,-500.0,0.00018687,2]
[325372585,1714768243024,-500.0,0.00018687,2]
[325372586,1714768243033,-500.0,0.00018687,2]
[325372588,1714768243041,-500.0,0.00018687,2]
[325372589,1714768243051,-500.0,0.00018687,2]
[325372590,1714768243060,-500.0,0.00018687,2]
[325372591,1714768243070,-500.0,0.00018687,2]
[325372592,1714768243079,-500.0,0.00018687,2]
[325372593,1714768243088,-500.0,0.00018687,2]
[325372594,1714768243098,-500.0,0.00018687,2]
[325372595,1714768243106,-500.0,0.00018687,2]
[325372596,1714768243116,-500.0,0.00018687,2]
[325372598,1714768243124,-500.0,0.00018687,2]
[325372600,1714768243134,-500.0,0.00018687,2]
[325372602,1714768243143,-500.0,0.00018687,2]
[325372604,1714768243152,-500.0,0.00018687,2]
[325372607,1714768243161,-500.0,0.00018687,2]
[325372608,1714768243171,-500.0,0.00018687,2]
[325372609,1714768243180,-500.0,0.00018687,2]
[325372610,1714768243189,-500.0,0.00018687,2]
[325372611,1714768243198,-500.0,0.00018687,2]
[325372612,1714768243207,-500.0,0.00018687,2]
[325372613,1714768243217,-500.0,0.00018687,2]
[325372614,1714768243226,-500.0,0.00018687,2]
[325372615,1714768243236,-500.0,0.00018687,2]
[325372616,1714768243244,-500.0,0.00018687,2]
[325372617,1714768243254,-500.0,0.00018687,2]
[325372618,1714768243266,-500.0,0.00018687,2]
[325372619,1714768243275,-500.0,0.00018687,2]
[325372620,1714768243285,-500.0,0.00018687,2]
[325372621,1714768243294,-500.0,0.00018687,2]
[325372622,1714768243303,-500.0,0.00018687,2]
[325372623,1714768243312,-500.0,0.00018687,2]
[325372624,1714768243321,-500.0,0.00018687,2]
[325372625,1714768243331,-500.0,0.00018687,2]
[325372626,1714768243340,-500.0,0.00018687,2]
[325372627,1714768243349,-500.0,0.00018687,2]
[325372628,1714768243359,-500.0,0.00018687,2]
[325372629,1714768243369,-500.0,0.00018687,2]
[325372630,1714768243378,-500.0,0.00018687,2]
[325372631,1714768243387,-500.0,0.00018687,2]
[325372632,1714768243396,-500.0,0.00018687,2]
[325372633,1714768243405,-500.0,0.00018687,2]
[325372634,1714768243414,-500.0,0.00018687,2]
[325372635,1714768243424,-500.0,0.00018687,2]
[325372636,1714768243434,-500.0,0.00018687,2]
[325372637,1714768243442,-500.0,0.00018687,2]
[325372638,1714768243452,-500.0,0.00018687,2]
[325372639,1714768243461,-500.0,0.00018687,2]
[325372640,1714768243470,-500.0,0.00018687,2]
[325372641,1714768243479,-500.0,0.00018687,2]
[325372642,1714768243488,-500.0,0.00018687,2]
[325372643,1714768243497,-500.0,0.00018687,2]
[325372644,1714768243506,-500.0,0.00018687,2]
[325372645,1714768243519,-500.0,0.00018687,2]
[325372646,1714768243528,-500.0,0.00018687,2]
[325372647,1714768243537,-500.0,0.00018687,2]
[325372648,1714768243546,-500.0,0.00018687,2]
[325372649,1714768243555,-500.0,0.00018687,2]
[325372650,1714768243564,-500.0,0.00018687,2]
[325372651,1714768243574,-500.0,0.00018687,2]
[325372652,1714768243588,-500.0,0.00018687,2]
[325372653,1714768243597,-500.0,0.00018687,2]
[325372654,1714768243606,-500.0,0.00018687,2]
[325372655,1714768243616,-23527.82349454,0.000189,2]
[325372656,1714768243627,-5072.11090555,0.000189,2]
[325372657,1714768243636,-167.0,0.00018946,2]
[325372658,1714768243646,-205.0,0.0001915,6]
[325372659,1714768243656,-500.0,0.00019178,2]
[325372660,1714768243671,-500.0,0.00019178,2]
[325372661,1714768243680,-500.0,0.00019178,2]
[325372662,1714768243689,-500.0,0.00019178,2]
[325372663,1714768243698,-500.0,0.00019178,2]
[325372664,1714768243707,-500.0,0.00019178,2]
[325372665,1714768243716,-500.0,0.00019178,2]
[325372666,1714768243725,-500.0,0.00019178,2]
[325372667,1714768243734,-500.0,0.00019178,2]
[325372669,1714768243744,-500.0,0.00019178,2]
[325372671,1714768243754,-500.0,0.00019178,2]
[325372672,1714768243768,-280.08298019,0.00019178,2]
[325372673,1714768243778,-500.0,0.00019178,2]
[325372674,1714768243788,-500.0,0.00019178,2]
[325372675,1714768243797,-500.0,0.00019178,2]
[325372676,1714768243807,-500.0,0.00019178,2]
[325372677,1714768243816,-500.0,0.00019178,2]
[325372678,1714768243826,-500.0,0.00019178,2]
[325372679,1714768243836,-500.0,0.00019178,2]
[325372680,1714768243847,-500.0,0.00019178,2]
[325372681,1714768243856,-500.0,0.00019178,2]
[325372682,1714768243865,-500.0,0.00019178,2]
[325372683,1714768243874,-500.0,0.00019178,2]
[325372684,1714768243884,-500.0,0.00019178,2]
[325372685,1714768243893,-500.0,0.00019178,2]
[325372686,1714768243903,-500.0,0.00019178,2]
[325372687,1714768243912,-500.0,0.00019178,2]
[325372688,1714768243921,-500.0,0.00019178,2]
[325372689,1714768243930,-500.0,0.00019178,2]
[325372690,1714768243939,-500.0,0.00019178,2]
[325372691,1714768243949,-500.0,0.00019178,2]
[325372692,1714768243960,-4000.0,0.00019178,2]
[325372693,1714768243969,-264.434157,0.00019178,2]
[325372694,1714768243978,-523.74,0.000192,2]
[325372695,1714768243987,-433.01,0.000192,2]
[325372696,1714768243996,-1000.0,0.0001938,2]
[325372697,1714768244005,-395.22,0.000195,2]
[325372698,1714768244017,-150.238,0.00019585,2]
[325372699,1714768244026,-150.072,0.00019585,2]
[325372700,1714768244035,-150.0,0.00019585,2]
[325372701,1714768244044,-154.4989581,0.000199,2]
[325372702,1714768244052,-5174.91787188,0.0002,2]
[325372703,1714768244061,-1259.16438446,0.0002,2]
[325372704,1714768244071,-6226.02936575,0.0002,2]
[325372705,1714768244080,-1250.0,0.0002,3]
[325372706,1714768244089,-358.19784561,0.0002,2]
[325372707,1714768244098,-155.0,0.00020026,2]
[325372708,1714768244107,-860.33884772,0.00020026,2]
[325372709,1714768244116,-155.0,0.00020026,2]
[325372710,1714768244126,-630.2,0.00020271,2]
[325372711,1714768244135,-191.14,0.00020293,2]
[325372712,1714768244144,-1246.95517239,0.0002035,2]
[325372713,1714768244153,-3000.0,0.0002037,2]
[325372714,1714768244162,-1786.0,0.00020437,2]
[325372715,1714768244171,-209.0,0.00020437,2]
[325372716,1714768244180,-609.824,0.00020437,2]
[325372717,1714768244189,-437.0,0.00020437,2]
[325372718,1714768244198,-807.0,0.00020437,2]
[325372719,1714768244208,-2449.0,0.00020437,2]
[325372720,1714768244217,-1477.0,0.00020437,2]
[325372721,1714768244226,-421.0,0.00020437,2]
[325372722,1714768244235,-1643.0,0.00020437,2]
[325372723,1714768244244,-444.0,0.00020437,2]
[325372724,1714768244253,-215.0,0.00020437,2]
[325372725,1714768244263,-1139.0,0.00020437,2]
[325372726,1714768244274,-3150.0,0.00020437,2]
[325372727,1714768244283,-969.839,0.00020437,2]
[325372728,1714768244292,-1394.0,0.00020437,2]
[325372729,1714768244304,-5739.0,0.00020437,2]
[325372730,1714768244314,-2299.0,0.00020437,2]
[325372731,1714768244324,-5901.0,0.00020437,2]
[325372732,1714768244333,-37757.0,0.00020437,2]
[325372733,1714768244343,-461.794,0.00020437,2]
[325372734,1714768244353,-2292.0,0.00020437,2]
[325372735,1714768244363,-165.6,0.00020536,2]
[325372736,1714768244372,-1768.70416813,0.00020799,2]
[325372737,1714768244382,-10000.0,0.00020815,2]
[325372738,1714768244392,-200.0,0.00020832,2]
[325372739,1714768244401,-155.14919846,0.00020876,2]
[325372740,1714768244411,-234.47716316,0.00020902,2]
[325372741,1714768244420,-1751.77229489,0.00020982,2]
[325372742,1714768244429,-496.47352733,0.0002099,2]
[325372743,1714768244438,-716.31163924,0.00021,2]
[325372744,1714768244447,-1000.0,0.00021141,2]
[325372745,1714768244457,-151.89,0.00021644,2]
[325372746,1714768244466,-154.68,0.00021644,2]
[325372747,1714768244475,-155.71,0.00021644,2]
[325372748,1714768244485,-23527.82349454,0.000219,2]
[325372749,1714768244494,-5072.11090555,0.000219,2]
[325372750,1714768244503,-250.0,0.00021918,2]
[325372751,1714768244513,-2000.0,0.00021918,2]
[325372752,1714768244523,-2000.0,0.00021918,3]
[325372753,1714768244532,-150.0,0.00021918,2]
[325372754,1714768244541,-6756.30981647,0.00021998,2]
[325372755,1714768244550,-367.1059577,0.00022,30]
[325372756,1714768244560,-1300.0,0.00022,3]
[325372757,1714768244569,-523.74,0.000221,2]
[325372758,1714768244579,-433.01,0.000221,2]
[325372759,1714768244592,-630.2,0.00022114,2]
[325372760,1714768244602,-329.65892134,0.0002224,2]
[325372761,1714768244612,-167.87727307,0.00022381,2]
[325372762,1714768244622,-165.31,0.00022396,2]
[325372763,1714768244633,-165.6,0.00022403,2]
[325372764,1714768244642,-205.04975868,0.00022427,2]
[325372765,1714768244652,-329.65892134,0.00022463,2]
[325372766,1714768244661,-191.14,0.00022547,2]
[325372767,1714768244673,-205.04975868,0.00022573,2]
[325372768,1714768244683,-159.77688906,0.00022651,2]
[325372769,1714768244693,-329.65892134,0.0002273,2]
[325372770,1714768244703,-3000.0,0.0002287,2]
[325372771,1714768244713,-329.65892134,0.00022908,2]
[325372772,1714768244723,-205.04975868,0.00022928,2]
[325372773,1714768244733,-329.65892134,0.00022998,2]
[325372774,1714768244743,-152.67353959,0.00023163,2]
[325372775,1714768244752,-205.04975868,0.00023247,2]
[325372776,1714768244763,-156.62550745,0.0002339,2]
[325372777,1714768244772,-150.93915784,0.0002341,2]
[325372778,1714768244782,-2446.0,0.00023437,2]
[325372779,1714768244792,-1461.259,0.00023437,2]
[325372780,1714768244802,-382.814,0.00023437,2]
[325372781,1714768244811,-1643.0,0.00023437,2]
[325372782,1714768244821,-444.0,0.00023437,2]
[325372783,1714768244832,-210.0,0.00023437,2]
[325372784,1714768244842,-1139.0,0.00023437,2]
[325372785,1714768244852,-3099.0,0.00023437,2]
[325372786,1714768244862,-5733.0,0.00023437,2]
[325372787,1714768244871,-2296.0,0.00023437,2]
[325372788,1714768244881,-5901.0,0.00023437,2]
[325372789,1714768244891,-7181.571,0.00023437,2]
[325372790,1714768244901,-2292.0,0.00023437,2]
[325372791,1714768244910,-155.0,0.00023562,2]
[325372792,1714768244920,-17689.69576685,0.00023671,2]
[325372793,1714768244930,-159.77688906,0.00023676,2]
[325372794,1714768244940,-159.77688906,0.00023785,2]
[325372795,1714768244949,-60885.37102056,0.00024,7]
[325372796,1714768244959,-329.65892134,0.00024033,2]
[325372797,1714768244969,-329.65892134,0.0002408,2]
[325372798,1714768244978,-205.04975868,0.00024094,2]
[325372799,1714768244988,-329.65892134,0.00024186,2]
[325372800,1714768244997,-165.30353314,0.00024468,2]
[325372801,1714768245007,-150.0,0.000245,4]
[325372802,1714768245020,-433.01,0.000247,2]
[325372803,1714768245030,-523.74,0.000247,2]
[325372804,1714768245039,-155.0,0.00024802,2]
[325372805,1714768245049,-1036.89152846,0.00024802,2]
[325372806,1714768245058,-2000.0,0.00024802,2]
[325372807,1714768245067,-200.0,0.00024802,2]
[325372808,1714768245077,-200.0,0.00024802,2]
[325372809,1714768245086,-23527.82349454,0.000249,2]
[325372810,1714768245096,-5072.11090555,0.000249,2]
[325372811,1714768245105,-155.0,0.00025,2]
[325372812,1714768245115,-5000.0,0.00025,2]
[325372813,1714768245124,-4786.83016786,0.00025,30]
[325372814,1714768245133,-150.0,0.00025,4]
[325372815,1714768245142,-154.6529785,0.00025033,2]
[325372816,1714768245151,-908.06591105,0.0002505,2]
[325372817,1714768245160,-200.0,0.0002505,2]
[325372818,1714768245170,-200.0,0.0002505,2]
[325372819,1714768245180,-157.93592244,0.00025115,2]
[325372820,1714768245189,-205.04975868,0.00025135,2]
[325372821,1714768245199,-500.0,0.0002517,2]
[325372822,1714768245208,-200.0,0.00025301,2]
[325372823,1714768245228,-159.77688906,0.00025301,2]
[325372824,1714768245239,-200.0,0.00025301,2]
[325372825,1714768245248,-3000.0,0.0002537,2]
[325372826,1714768245258,-150.0,0.000255,4]
[325372827,1714768245270,-200.0,0.00025554,2]
[325372828,1714768245280,-200.0,0.00025554,2]
[325372829,1714768245289,-205.04975868,0.0002566,2]
[325372830,1714768245298,-608.53,0.00025702,2]
[325372831,1714768245308,-205.04975868,0.00025775,2]
[325372832,1714768245318,-329.65892134,0.00025787,2]
[325372833,1714768245328,-200.0,0.00025809,2]
[325372834,1714768245338,-200.0,0.00025809,2]
[325372835,1714768245347,-203.7,0.00025823,120]
[325372836,1714768245357,-329.65892134,0.00025933,2]
[325372837,1714768245367,-150.0,0.00026,4]
[325372838,1714768245377,-150.50893178,0.00026077,2]
[325372839,1714768245387,-238.48,0.00026139,2]
[325372840,1714768245396,-159.77688906,0.00026241,2]
[325372841,1714768245406,-205.04975868,0.00026308,2]
[325372842,1714768245415,-154.71099278,0.00026375,2]
[325372843,1714768245425,-150.0,0.000265,5]
[325372844,1714768245435,-953.70068916,0.00026577,2]
[325372845,1714768245445,-363.20473629,0.00026577,2]
[325372846,1714768245455,-152.67353959,0.0002669,2]
[325372847,1714768245465,-329.65892134,0.0002679,2]
[325372848,1714768245475,-329.65892134,0.00026792,2]
[325372849,1714768245485,-160.50870462,0.00026831,2]
[325372850,1714768245494,-205.04975868,0.00026871,2]
[325372851,1714768245504,-686841.10385834,0.00026899,2]
[325372852,1714768245514,-433.01,0.000269,2]
[325372853,1714768245524,-523.74,0.000269,2]
[325372854,1714768245533,-150.0,0.00027,5]
[325372855,1714768245543,-155.0,0.00027027,2]
[325372856,1714768245552,-191.14,0.00027057,120]
[325372857,1714768245562,-150.93915784,0.00027097,2]
[325372858,1714768245571,-205.04975868,0.00027171,2]
[325372859,1714768245585,-329.65892134,0.00027289,2]
[325372860,1714768245594,-156.62550745,0.00027293,2]
[325372861,1714768245604,-205.04975868,0.00027345,2]
[325372862,1714768245614,-150.93915784,0.00027455,2]
[325372863,1714768245626,-150.0,0.000275,5]
[325372864,1714768245636,-156.62550745,0.00027628,2]
[325372865,1714768245646,-160.50870462,0.0002766,2]
[325372866,1714768245657,-445.42,0.00027699,2]
[325372867,1714768245668,-205.04975868,0.0002775,2]
[325372868,1714768245679,-1246.95517239,0.000278,2]
[325372869,1714768245689,-329.65892134,0.0002786,2]
[325372870,1714768245699,-205.04975868,0.00027865,2]
[325372873,1714768246020,-23527.82349454,0.000279,2]
[325372875,1714768246031,-5072.11090555,0.000279,2]
[325372877,1714768246041,-427.4264081,0.00027962,2]
[325372879,1714768246050,-262.0038889,0.00027976,2]
[325372880,1714768246060,-789.45794421,0.00027976,2]
[325372882,1714768246069,-155.0,0.00027976,2]
[325372884,1714768246079,-155.0,0.00027976,2]
[325372886,1714768246088,-343.21449712,0.00027976,2]
[325372888,1714768246098,-383.54375353,0.00027976,2]
[325372890,1714768246108,-266.49201267,0.00027976,2]
[325372892,1714768246117,-155.0,0.00027976,2]
[325372894,1714768246127,-236.47575198,0.00027976,2]
[325372895,1714768246136,-155.0,0.00027976,2]
[325372897,1714768246146,-155.0,0.00027976,2]
[325372899,1714768246156,-5097.66971521,0.00027976,2]
[325372901,1714768246165,-264.87587186,0.00027976,2]
[325372902,1714768246175,-255.31642178,0.00027976,2]
[325372903,1714768246190,-155.0,0.00027976,2]
[325372904,1714768246200,-155.00008464,0.00027976,2]
[325372905,1714768246210,-1809.06916274,0.00027976,2]
[325372907,1714768246220,-155.35718705,0.00027976,2]
[325372909,1714768246231,-1310.71955182,0.00027976,2]
[325372911,1714768246241,-155.54137857,0.00027976,2]
[325372914,1714768246251,-206.86184835,0.00027976,2]
[325372916,1714768246264,-262.25935508,0.00027976,2]
[325372918,1714768246274,-157.28595721,0.00027976,2]
[325372920,1714768246283,-703.54384034,0.00027976,2]
[325372922,1714768246293,-358.15431271,0.00027976,2]
[325372924,1714768246303,-155.16352534,0.00027976,2]
[325372926,1714768246313,-156.18801423,0.00027976,2]
[325372928,1714768246324,-295.6947702,0.00027976,2]
[325372930,1714768246335,-155.0,0.00027976,2]
[325372932,1714768246344,-183.20297934,0.00027976,2]
[325372933,1714768246355,-155.0,0.00027976,2]
[325372934,1714768246365,-155.0,0.00027976,2]
[325372935,1714768246375,-155.0,0.00027976,2]
[325372936,1714768246384,-325.26738678,0.00027976,2]
[325372937,1714768246394,-155.96266392,0.00027976,2]
[325372938,1714768246404,-407.24438258,0.00027976,2]
[325372939,1714768246414,-162.16124064,0.00027976,2]
[325372940,1714768246424,-333.63645202,0.00027976,2]
[325372941,1714768246434,-370.23683963,0.00027976,2]
[325372942,1714768246444,-11419.27646872,0.00027976,2]
[325372943,1714768246454,-1211.45504848,0.00027976,2]
[325372944,1714768246464,-155.0,0.00027976,2]
[325372945,1714768246474,-513.87,0.00027976,2]
[325372946,1714768246484,-409.2085642,0.00027976,2]
[325372947,1714768246493,-2180.17335597,0.00027976,2]
[325372948,1714768246503,-1063.93980894,0.00027976,2]
[325372949,1714768246514,-363.46064478,0.00027976,2]
[325372950,1714768246524,-155.03364716,0.00027976,2]
[325372951,1714768246534,-302.24345875,0.00027976,2]
[325372952,1714768246544,-200.0,0.00027976,2]
[325372953,1714768246553,-617.71050029,0.00027976,2]
[325372954,1714768246563,-167.17477728,0.00027976,3]
[325372955,1714768246573,-1224.55602433,0.00027976,2]
[325372956,1714768246583,-161.55059082,0.00027976,2]
[325372957,1714768246597,-194.47654533,0.00027976,2]